Cogmind - Beta 15 @@@ ROGUE MODE // 2025.08.26 @ 15:26:16 Player: 7604 Result: Self-destructed Performance ------------- Evolutions (2) 1000 Regions Visited (3) 600 Robots Destroyed (69) 345 Value Destroyed (1976) 1976 Prototype IDs (5) 100 Alien Tech Used (0) 0 Bonus (53) 53 TOTAL SCORE: 4074 Bonus ------- High Alert Combat Kills 53 Cogmind --------- Core Integrity 249/550 Matter 295/300 Energy 69/100 System Corruption 4% Temperature Cool (18) Movement Treading (240) Ox1 Location -8/Materials Parts ------- > --- POWER (1) -------- (None) > --- PROPULSION (5) --- Light Treads Light Treads > --- UTILITY (3) ------ High-capacity Storage Unit Hacking Suite > --- WEAPON (2) ------- Ion Cannon Great Maul > --- INVENTORY (20) --- Subdweller Power Source Light Treads Improved Heat Sink Machine Analyzer Improved Terrain Scanner Seismic Detector Seismic Detector Improved Light Armor Plating Improved Light Armor Plating Salvaging Laser Salvaging Laser Salvaging Laser Subdweller Laser Ion Cannon Subdweller Machine Gun Subdweller Machine Gun Rocket Launcher Mini Grenade Launcher Improved Datajack Peak State ------------ > --- POWER ------------ Light Deuterium Engine > --- PROPULSION ------- Light Treads Light Treads Light Treads Light Treads Armored Treads > --- UTILITY ---------- Cooling System High-capacity Storage Unit Improved Light Armor Plating > --- WEAPON ----------- Heavy Particle Cannon Ion Cannon > --- INVENTORY -------- Subdweller Power Source Light Treads Improved Heat Sink Machine Analyzer Improved Terrain Scanner Seismic Detector Seismic Detector Improved Light Armor Plating Hacking Suite Salvaging Laser Salvaging Laser Salvaging Laser Subdweller Laser Ion Cannon Subdweller Machine Gun Subdweller Machine Gun Rocket Launcher Mini Grenade Launcher Improved Datajack Great Maul [Rating: 26] Favorites ----------- Power Light Ion Engine Engine Light Ion Engine Propulsion Light Treads Treads Light Treads Hover Unit Aerolev Unit Utility High-capacity Storage Unit Device Seismic Detector Storage High-capacity Storage Unit Hackware Hacking Suite Protection Core Shielding Weapon Light Assault Rifle Energy Gun Medium Laser Energy Cannon Ion Cannon Ballistic Gun Light Assault Rifle Ballistic Cannon Assault Cannon Launcher Grenade Launcher Impact Weapon Great Maul Build | -11 -10 -10 -8 ------- Run | Yrd Mat Sub Mat Slots Evolved 4 | . . . 4 Power . | . . . . Propulsion 3 | . . . 3 Utility 1 | . . . 1 Weapon . | . . . . Parts Attached 55 | 7 8 9 31 Power 8 | 1 3 1 3 Engine 8 | 1 3 1 3 Core . | . . . . Reactor . | . . . . Propulsion 17 | 2 . 2 13 Treads 16 | 2 . 2 12 Leg . | . . . . Wheel . | . . . . Hover 1 | . . . 1 Flight . | . . . . Utility 11 | 2 3 . 6 Device 3 | 1 . . 2 Storage 4 | 1 2 . 1 Processor . | . . . . Hackware 1 | . . . 1 Protection 3 | . 1 . 2 Artifact . | . . . . Weapon 19 | 2 2 6 9 Energy Gun 8 | 1 2 4 1 Energy Cannon 4 | . . . 4 Ballistic Gun 3 | 1 . 1 1 Ballistic Cannon 1 | . . . 1 Launcher 2 | . . 1 1 Special Weapon . | . . . . Impact Weapon 1 | . . . 1 Slashing Weapon . | . . . . Piercing Weapon . | . . . . Special Melee Weapon . | . . . . Unidentified Prototypes 1 | . . . 1 Parts Lost 17 | . 5 2 10 Power 4 | . 3 . 1 Propulsion 8 | . . 1 7 Utility 1 | . . . 1 Weapon 4 | . 2 1 1 Highest Loss Streak 4 | . 1 1 4 To Critical Strikes 1 | . . . 1 Average Backups 15 | 1 11 19 19 Power . | . . 1 1 Propulsion 3 | . 3 5 1 Utility 5 | . 4 5 6 Weapon 5 | . 1 6 9 Tool/Special . | . . . . Unused Backups 12 | . . . 12 Power 1 | . . . 1 Propulsion 1 | . . . 1 Utility 5 | . . . 5 Weapon 3 | . . . 3 Tool/Special 2 | . . . 2 Average Slot Usage (%) 98 | . 99 99 97 Engine 12 | . 13 13 8 Treads 32 | . 27 27 43 Device 13 | . 11 12 14 Storage 12 | . 14 14 9 Protection 1 | . 2 1 1 Energy Gun 13 | . 14 21 2 Energy Cannon 3 | . . . 12 Ballistic Gun 7 | . 14 6 1 Peak Build Rating 26 | 7 9 13 26 Average Rating 12 | 5 8 11 21 On Entrance 7 | . 7 9 13 Naked Turns . | . . . . Heaviest Build 62 | 12 48 54 62 Greatest Support 100 | 40 40 40 100 Greatest Overweight (x) 2 | . 2 2 . Average Overweight (x) . | . . 1 . Largest Inventory Capacity 20 | 8 20 20 20 Average Capacity 19 | 7 19 20 20 Most Carried 20 | 4 16 20 20 Average Carried 16 | 2 11 19 19 Final Capacity 20 | 8 20 20 20 Final Carried 20 | 4 15 20 19 Class Distribution -------------------- 73% | Mutant 26% | Scavenger-Mutant Dominant Class ---------------- Mutant | -10/Materials Mutant | -10/Subcaves Scavenger-Mutant | -8/Materials Resources | -11 -10 -10 -8 ----------- Run | Yrd Mat Sub Mat Matter Collected 1629 | 274 264 186 905 Remotely . | . . . . Salvage Created 2328 | 37 719 180 1392 Parts 138 | 5 44 13 76 Haulers Intercepted 3 | . 2 . 1 Recyclers Shooed 3 | . 1 . 2 Parts Field Recycled . | . . . . Retrieved Matter . | . . . . Parts Self-Destructed 6 | . . 6 . Prevented . | . . . . Kills | -11 -10 -10 -8 ------- Run | Yrd Mat Sub Mat Combat Hostiles Destroyed 54 | . 17 5 32 Melee 1 | . . . 1 Guns 24 | . 16 4 4 Cannons 15 | . . . 15 AOE 11 | . . 1 10 Classes Destroyed 14 | 1 7 2 4 Worker 1 | . . . 1 Tunneler 2 | 2 . . . Hauler 3 | . 2 . 1 Recycler 2 | . 1 . 1 Mechanic 1 | . 1 . . Operator 2 | . 1 . 1 Watcher 4 | . 2 . 2 Swarmer 17 | . 9 . 8 Grunt 23 | . 8 . 15 Brawler 1 | . . . 1 Sentry 7 | . . . 7 Hunter 1 | . . . 1 Artisan 1 | . . 1 . Subdweller 5 | . . 5 . Best Kill Streak 5 | 1 3 1 5 Combat Bots Only 5 | . 3 1 5 Max Kills in Single Turn 3 | 1 1 1 3 Gunslinging . | . . . . Exploded 3 | . . 1 3 Melee 1 | . . . 1 Uniques/NPCs Destroyed . | . . . . Combat | -11 -10 -10 -8 -------- Run | Yrd Mat Sub Mat Hostile Shots Fired 391 | . 108 28 255 Missed 100 | . 27 8 65 Hits 291 | . 81 20 190 Melee 3 | . . . 3 Projectile 288 | . 81 20 187 AOE 4 | . . 4 . Critical Strikes 6 | . . 1 5 Damage Taken 4136 | . 832 583 2721 Core 550 | . 159 90 301 Absorbed by Shields . | . . . . Redirected to Shielding 31 | . 16 15 . Ignored by Resistances 96 | . . . 96 Regen/Repaired (Parts) 424 | . 231 . 193 Core Remaining (%) 50 | 100 . . . Volleys Fired 219 | 6 75 32 106 Largest 2 | 2 2 2 2 Hottest 135 | 70 70 100 135 Shots Fired 394 | 12 150 48 184 Gun 252 | 12 150 40 50 Cannon 128 | . . . 128 Launcher 14 | . . 8 6 Special . | . . . . Kinetic 113 | 6 75 3 29 Thermal 267 | 6 75 37 149 Explosive 14 | . . 8 6 Electromagnetic . | . . . . Robot Hit Streak 12 | 4 12 11 12 Robot Miss Streak 5 | 3 5 1 4 Penetration Max . | . . . . Secondary Targets 3 | . 3 . . Max Gunslinging Chain 1 | . 1 . . Shots Hit Robots 242 | 6 93 26 117 Core Hits 114 | 2 42 12 58 Critical Kills 1 | . . . 1 Critical Parts Destroyed 4 | . 1 . 3 Critical Strikes 13 | 1 7 . 5 Burn 7 | 1 6 . . Destroy 1 | . 1 . . Blast 1 | . . . 1 Smash 4 | . . . 4 Melee Attacks 12 | . . . 12 Impact 12 | . . . 12 Slashing . | . . . . Piercing . | . . . . Sneak Attacks 1 | . . . 1 Combat Hostiles . | . . . . Follow-up Attacks . | . . . . Damage Inflicted 4776 | 60 989 427 3300 Guns 1703 | 60 989 248 406 Cannons 1913 | . . . 1913 Explosions 716 | . . 179 537 Melee 444 | . . . 444 Ramming . | . . . . Kinetic 745 | 36 383 18 308 Thermal 2871 | 24 606 230 2011 Explosive 716 | . . 179 537 Electromagnetic . | . . . . Impact 444 | . . . 444 Slashing . | . . . . Piercing . | . . . . Highest Corruption 4 | . . . 4 Average Corruption 4 | . . . 4 Corruption Purged . | . . . . Corruption Blocked . | . . . . Effects 1 | . . . 1 Parts Rejected 1 | . . . 1 Overload Shots . | . . . . Overflow Damage 215 | . . . 215 Projectiles 40 | . . . 40 Explosions 36 | . . . 36 Melee 139 | . . . 139 Knockbacks 3 | . . . 3 Impact . | . . . . Kinetic 3 | . . . 3 Secondary . | . . . . Self-Inflicted Damage . | . . . . Shots . | . . . . Rammed . | . . . . Targets Rammed . | . . . . Kicked . | . . . . Crushed . | . . . . Highest Temperature 335 | 50 180 . 335 Average Temperature 60 | 23 46 . 78 Received Heat Transfer 1644 | . 321 18 1305 Siege Activations . | . . . . Martial Activations . | . . . . Shielding Activations . | . . . . Robots Disrupted . | . . . . Combat Hostiles . | . . . . Robots Corrupted 2 | . . . 2 Combat Hostiles 2 | . . . 2 Parts Fried 2 | . . . 2 Impact Corruptions 6 | . . . 6 Robots Melted 1 | . 1 . . Combat Hostiles 1 | . 1 . . Parts Melted 11 | . 4 1 6 Heat Transferred 6209 | 148 2147 625 3289 Parts Sabotaged . | . . . . Parts Stolen . | . . . . Parts Stripped . | . . . . Power Chain Reactions . | . . . . Alert | -11 -10 -10 -8 ------- Run | Yrd Mat Sub Mat Maximum Alert Level 2 | . . . 2 Low Security (%) 73 | 100 100 . 33 Level 1 23 | . . . 59 Level 2 2 | . . . 7 Level 3 . | . . . . Level 4 . | . . . . Level 5 . | . . . . High Security . | . . . . Max Security . | . . . . Peak Influence 560 | 5 179 . 560 Initial . | . . . . Average 111 | . 47 . 214 Influence Increases 1761 | 10 640 . 1111 Destroy 0b10 Robot/C 980 | . 340 . 640 Destroy 0b10 Robot/NC 75 | 10 35 . 30 Destroy Leader 234 | . 78 . 156 Successful Hack 43 | . 37 . 6 Select Force Hacks 60 | . 60 . . Disable Machine 75 | . . . 75 Destroy Structure 69 | . . . 69 Partial Spotted 30 | . . . 30 Lose Combat Pursuer 195 | . 90 . 105 Influence Decreases 1221 | 10 465 175 571 Entered New Map 85 | . . 85 . Time Decay 996 | 10 425 90 471 Lost Part 140 | . 40 . 100 Squads Dispatched 10 | . 5 . 5 Investigation 6 | . 4 . 2 Extermination . | . . . . Reinforcement 4 | . 1 . 3 Assault . | . . . . Garrison . | . . . . Intercept . | . . . . Searches Triggered . | . . . . Construction Impeded . | . . . . Haulers Reinforced . | . . . . Active Scanning Responses . | . . . . Cargo Convoy Interrupts . | . . . . Stealth | -11 -10 -10 -8 --------- Run | Yrd Mat Sub Mat Distress Signals 8 | . 2 . 6 Communications Jammed . | . . . . Distress Signals . | . . . . Times Spotted 95 | . 37 8 50 Peak Tracking Total 7 | . 4 2 7 Tactical Retreats 9 | . 5 . 4 Traps | -11 -10 -10 -8 ------- Run | Yrd Mat Sub Mat Traps Triggered 3 | . 1 . 2 Indirectly . | . . . . Trap Hack Attempts . | . . . . Triggered . | . . . . Disarmed . | . . . . Reprogrammed . | . . . . Reused 1 | . . 1 . Traps Extracted . | . . . . Installed 1 | . . 1 . Triggered . | . . . . Machines | -11 -10 -10 -8 ---------- Run | Yrd Mat Sub Mat Machines Disabled 5 | . . . 5 Max in Single Turn 1 | . . . 1 Garrison Access 1 | . . . 1 Machines Repaired . | . . . . Machines Dismantled . | . . . . Machines Sabotaged . | . . . . Overloaded Fab Kills . | . . . . Hacking | -11 -10 -10 -8 --------- Run | Yrd Mat Sub Mat Machines Accessed 15 | . 10 . 5 Terminals 10 | . 7 . 3 Fabricators . | . . . . Repair Stations 2 | . 1 . 1 Recycling Units 2 | . 2 . . Scanalyzers . | . . . . Garrison Access 1 | . . . 1 Total Hacks 54 | . 37 . 17 Successful 33 | . 24 . 9 Failed 21 | . 13 . 8 Catastrophic 1 | . . . 1 Database Lockouts . | . . . . Manual 34 | . 23 . 11 Terminals 37 | . 26 . 11 Fabricators . | . . . . Repair Stations 10 | . 5 . 5 Recycling Units 6 | . 6 . . Scanalyzers . | . . . . Garrison Access 1 | . . . 1 Terminal Hacks 9 | . 8 . 1 Part Schematic 1 | . 1 . . Robot Analysis 5 | . 5 . . Prototype ID Bank 2 | . 2 . . Terminal Index 1 | . . . 1 Fabricator Hacks . | . . . . Repair Station Hacks 8 | . 4 . 4 Scan Component 4 | . 2 . 2 Repair 4 | . 2 . 2 Recycling Unit Hacks 2 | . 2 . . Retrieve Components 2 | . 2 . . Scanalyzer . | . . . . Garrison Access Hacks 1 | . . . 1 Seal Access 1 | . . . 1 Unauthorized Hacks 13 | . 10 . 3 Terminals 11 | . 8 . 3 Botnet 3 | . 2 . 1 Operators 1 | . 1 . . Skim 7 | . 5 . 2 Fabricators . | . . . . Repair Stations . | . . . . Recycling Units 2 | . 2 . . Tunnel 2 | . 2 . . Scanalyzers . | . . . . Garrison Access . | . . . . Data Cores Recovered . | . . . . Used . | . . . . Hacking Detections 12 | . 8 . 4 Full Trace Events 1 | . 1 . . Feedback Events . | . . . . Feedback Blocked . | . . . . Robot Schematics Acquired . | . . . . Robots Built . | . . . . Authchips . | . . . . Time . | . . . . Total Robot Build Rating . | . . . . Part Schematics Acquired 1 | . 1 . . Parts Built . | . . . . Authchips . | . . . . Time . | . . . . Total Part Build Rating . | . . . . Parts Repaired 4 | . 2 . 2 Time 104 | . 52 . 52 Parts Recycled . | . . . . Recycled Matter . | . . . . Retrieved Matter . | . . . . Retrieved Components 19 | . 19 . . Parts Scanalyzed . | . . . . Part Schematics Acquired . | . . . . Parts Damaged . | . . . . Bothacking | -11 -10 -10 -8 ------------ Run | Yrd Mat Sub Mat Used RIF Installer . | . . . . Robots Hacked . | . . . . Non-combat . | . . . . Combat . | . . . . Robot Hacks Applied . | . . . . Relay Couplers Released . | . . . . Fabnet Peak Effective % . | . . . . Robots Rewired . | . . . . Allies Hacked . | . . . . Hacks Repelled . | . . . . Allies | -11 -10 -10 -8 -------- Run | Yrd Mat Sub Mat Total Allies . | . . . . Largest Group . | . . . . Highest-Rated Group . | . . . . Highest-Rated Ally . | . . . . Total Orders . | . . . . Ally Attacks . | . . . . Total Damage . | . . . . Kills . | . . . . Allies Corrupted . | . . . . Allies Melted . | . . . . Intel | -11 -10 -10 -8 ------- Run | Yrd Mat Sub Mat Active Infowar (turns) 4712 | 65 1803 1689 1155 Terrain 912 | . . . 912 Seismic 4507 | 65 1803 1689 950 Robot Analysis Total 5 | . 5 . . Derelict Logs Recovered . | . . . . Drone Launches . | . . . . Drone Recoveries . | . . . . Exploration | -11 -10 -10 -8 ------------- Run | Yrd Mat Sub Mat Turns Passed 5575 | 140 2127 1831 1477 Spaces Moved 1997 | 68 753 620 556 Core 1 | 1 . . . Treads 1996 | 67 753 620 556 Legs . | . . . . Wheels . | . . . . Hover . | . . . . Flight . | . . . . Fastest Speed 50 | 50 160 240 160 Average Speed 213 | 158 234 240 160 Slowest Speed 320 | 160 320 320 162 Overloaded Moves . | . . . . Propulsion Burnouts . | . . . . Robots Hopped . | . . . . Potential Cave-ins . | . . . . Cave-ins Triggered . | . . . . Exploration Rate (%) 46 | 6 97 36 46 Regions Visited 3 Branch Regions 1 Pre-discovered Areas 3 | . 2 1 . Known Exits Taken 1 | . . 1 . Unknown Exits Taken 2 | 1 1 . . Scrap Searched 4 | . . 4 . Spaces Dug 36 | . . 6 30 Terrain Destroyed 85 | . . 17 68 Melee 1 | . . . 1 Projectile 30 | . . . 30 AOE 54 | . . 17 37 Terrain Rammed . | . . . . Walls Destroyed . | . . . . Machines Disabled . | . . . . Actions | -11 -10 -10 -8 --------- Run | Yrd Mat Sub Mat Total 2898 | 86 974 915 923 Wait 481 | 2 109 227 143 Move 1994 | 67 752 619 556 Hop . | . . . . Pick Up 49 | 4 15 9 21 Fast Attach 13 | 7 3 1 2 Attach 16 | . 4 2 10 Detach 1 | . . 1 . Swap 87 | . 14 20 53 Drop 25 | . 2 3 20 Fire 219 | 6 75 32 106 Melee 12 | . . . 12 Ram . | . . . . Kick . | . . . . Crush . | . . . . Escape Stasis . | . . . . Rewire . | . . . . Trap 1 | . . 1 . Miscellaneous . | . . . . Route ------- -11/Scrapyard -10/Materials (discovered 6 exits: *Mat x3 / [*Min x2] / [*Sub]) -10/Subcaves (discovered 3 exits: *Mat x2 / [*Scr]) -8/Materials (discovered 1 exit: [*Fac]) History --------- Turn | Location | Event 15 | -11/Scrapyard | Discovered new exit (range 16) 141 | -11/Scrapyard | Entered Materials 142 | -10/Materials | Met a group of wandering Federalists 309 | -10/Materials | Build established: Mutant 510 | -10/Materials | Discovered new exit (range 8) 537 | -10/Materials | Discovered new exit (range 14) 734 | -10/Materials | Discovered new exit (range 11) 1323 | -10/Materials | Discovered new exit (range 10) 1538 | -10/Materials | Discovered new exit (range 9) 1626 | -10/Materials | Learned 4 Subcaves zone layouts 1687 | -10/Materials | Repaired Lgt. Treads 1697 | -10/Materials | Identified exit to Materials 1727 | -10/Materials | Repaired Lgt. Treads 1810 | -10/Materials | Learned 4 Subcaves zone layouts 2123 | -10/Materials | Core integrity fell below 50% 2268 | -10/Materials | Entered Subcaves 2269 | -10/Subcaves | Continued accompanying wandering Federalists (5) 2269 | -10/Subcaves | Approached by a straggling Scientist 2269 | -10/Subcaves | Identified exit to Materials 2394 | -10/Subcaves | Lost 3 allies 2564 | -10/Subcaves | Disturbed a concealed Subdweller 2570 | -10/Subcaves | Ambushed by Subdweller buried in earth 2965 | -10/Subcaves | Learned location of Zion (-6) 2965 | -10/Subcaves | Met a Zionite searching for "candidates" 3577 | -10/Subcaves | Core integrity fell below 20% 4055 | -10/Subcaves | Visited 4L-MR0's lab 4099 | -10/Subcaves | Entered Materials 4099 | -8/Materials | Evolved 4 slots: Propulsion x3, Utility x1 4492 | -8/Materials | Discovered new exit (range 16) 4946 | -8/Materials | Repaired Lgt. Treads 4976 | -8/Materials | Repaired Lgt. Treads 5088 | -8/Materials | Build established: Scavenger-Mutant 5530 | -8/Materials | Core integrity fell below 50% 5576 | -8/Materials | Self-destructed Last Messages --------------- 05551_ U-05 Engineer lays Concrete. 05552_ U-05 Engineer builds a Wall. 05560_ Destroyed Heat Sink. 05560_ Y-45 Defender system corrupted by crushing effect. 05564_ Y-45 Defender suffers critical hit (Smash). 05564_ Destroyed Imp. Ion Engine. 05564_ Y-45 Defender system corrupted by crushing effect. 05565_ Y-45 Defender system terminally corrupted. 05565_ Heat Sink fried. 05567_ Acquired 8 matter. 05569_ R-06 Scavenger collects Corrupted Beam Rifle. 05574_ Cooling System destroyed. 05575_ System corrupted: Great Maul rejected. 05575_ Acquired Great Maul. 05576_ Lgt. Treads destroyed. Map ----- +----------------------------------------------------+ | ?????????????????????????????????????????????????? | | ?????????????????????????????????????????????????? | | ?????????????????????????????????????????????????? | | ?????????????????????????????????????????????????? | | ?????????????????????????????????????????????????? | | ?????????????????????????????????????????????????? | | ?????????????????????????????????????????????????? | | ?????????????????????????????????????????????????? | | ?????????????????????????????????????????????????? | | ?????????????????????????????????????????????????? | | ?????????????????????????????????????????????????? | | ????????????????????????? ?????????????????????? | | ????????????????????????? ?????????????????????? | | ???????????????????????? #????????????????????? | | ???????????????????????? T????????????????????? | | ???????????????????????? #????????????????????? | | ???????????????????????? #????????????????????? | | ???????????????????????? = #????????????????????? | | ???????????????????????? #????????????????????? | | ???????????????????????? [ #????????????????????? | | ????????????????????????? ####?????????????????? | | ????????????????????????? ??????????????????? | | ?????????????????????????" r ???????????????????? | | ?????????????????????????" ????????????????????? | | ??????????????????????####g####??????????????????? | | ??????????????????????# @ #??????????????????? | | ??????????????????????# % #? ??????????????? | | ?????????????????????## #? #?????????????? | | ?????????????????????## u ## #?????????????? | | ???????????????###???## ## +?????????????? | | ??????????????#########g ## #?????????????? | | ??????????????## %/g u ## #?"????????#??? | | ???????????????# # % ## #?????????????? | | ???????????????# # ## #?????????????# | | ???????????????# # ## #???????#?#??#? | | ???????????????# # ## #??#?#????????? | | ???????????????# ########## #??????????#??? | | ?????? ##########/### #### ##?????#??????? | | ????? ### #??????#?????? | | ????? ! ############## | | ????? % | | ?????? ####### ### | | ???????????????# #####+##### %% | | ???????????????# # ! ##########+######/## | | ???????????????# # """ ## %!# | | ???????????????# # "G" # !# % " | | ???????????????# # " " ### # "T | | ??????????????## # """ ### [ # """ | | ????????????#??# # """ #?# # """ | | ???????????????# # """ #?# /# """ | +----------------------------------------------------+ Best States ------------- Heat Dissipation 53 Energy Generation 15 Energy Capacity 265 Matter Stores 300 Matter Capacity 300 Sight Range 16 Terrain Scan Range 16 Terrain Scan Density 10 Armor Coverage 150 Resistance: TH 10 Core Shielding 20 Evasion (%) 40 Recoil Reduction 5 Offensive Hacking 10 Item Schematics ----------------- Huge Storage Unit | -10/Materials | Hacked Robot Schematics ------------------ None Fabricated ------------ Nothing Repaired ---------- Lgt. Treads | 12% | -10/Materials Lgt. Treads | 22% | -10/Materials Lgt. Treads | 19% | -8/Materials Lgt. Treads | 42% | -8/Materials Alien Tech Used ----------------- None Achievements -------------- None Challenges ------------ None Game ------ Seed SystemScrapoidSabre Manual? 0 Play Time 00:41:59 Cumulative 552.3 hours Start 2025.08.25 @ 19:31:46 End 2025.08.26 @ 15:26:16 Sessions 3 Manual Loads 0 Difficulty Rogue Special Mode None Game No. 287 Rogue 224 Adventurer 63 Explorer 0 Win Type - Total 10 Types 8/0/0/1/0/0/1/0/0/0 Lore% 91 Gallery% 84 Achievement% 69 Wizard Run 0 Options --------- Layout 1 ASCII 0 Keyboard 1 Movement Numpad Keybinds 0 Fullscreen 2 Font 24/Terminus Map View 50x35 Zoom Use 0% Tactical HUD 1 Map Filters NONE Filters NONE Steam 1 RUN: 1162372d-7284-44d1-87ce-e56f03621699